bitfinex-derivatives/quotes_ETHF0:USTF0_20250326
["timestamp","ask_amount","ask_price","bid_price","bid_amount"]
[1743033133406,0.99525,2009.3,2009.2,4.6300196]
[1743033133605,0.99525,2009.3,2009.2,2.16666154]
[1743033133804,3.12665,2009.3,2009.2,3.16196154]
[1743033134314,3.12665,2009.3,2009.2,2.16666154]
[1743033134509,0.99535,2009.1,2009.0,3.698]
[1743033134813,0.99535,2009.1,2009.0,2.2438905]
[1743033135412,0.99535,2009.1,2009.0,2.24392442]
[1743033136715,2.40145,2009.1,2009.0,2.24392442]
[1743033137013,9.51415,2009.1,2009.0,2.24392442]
[1743033137219,9.51415,2009.1,2009.0,1.4089]
[1743033138414,9.51415,2009.1,2008.8,3.68346213]
[1743033138415,0.99545,2008.9,2008.8,3.68346213]
[1743033138617,0.99545,2008.9,2008.8,5.86448459]
[1743033138818,8.10815,2008.9,2008.8,5.86448459]
[1743033139116,9.40955,2008.9,2008.8,6.85997459]
[1743033139419,9.40955,2008.9,2008.8,6.85998038]
[1743033140208,9.40955,2008.9,2008.8,2.18849038]
[1743033140410,9.40955,2008.9,2008.8,3.18398038]
[1743033140610,9.40955,2008.9,2008.8,2.18849038]
[1743033141013,9.40955,2008.9,2008.8,3.18398038]
[1743033141216,9.40955,2008.9,2008.8,2.18849038]
[1743033141415,9.40955,2008.9,2008.8,0.00746213]
[1743033144322,7.1127,2008.9,2008.8,1.00295213]
[1743033144624,7.1127,2008.9,2008.8,1.83605896]
[1743033144815,7.1127,2008.9,2008.8,3.15185896]
[1743033145014,7.1127,2008.9,2008.8,3.67252459]
[1743033148724,7.1127,2008.9,2008.8,3.67211311]
[1743033149922,3.2078,2009.1,2009.0,0.9954]
[1743033150228,3.2078,2009.1,2009.0,5.9867184]
[1743033150829,3.2078,2009.1,2009.0,6.65857405]
[1743033151725,2.32497,2009.5,2009.4,0.9952]
[1743033152221,9.43767,2009.5,2009.4,0.9952]
[1743033153223,8.10787,2009.5,2009.4,1.51574865]
[1743033153429,7.1127,2009.5,2009.4,1.51574865]
[1743033153927,8.4883,2009.5,2009.4,2.82044865]
[1743033154529,9.48345,2009.5,2009.4,2.82062621]
[1743033154732,9.48345,2009.5,2009.4,1.82542621]
[1743033154733,8.4883,2009.5,2009.4,1.82542621]
[1743033155035,0.99533,2009.2,2009.1,0.99531]
[1743033155226,0.99533,2009.2,2009.1,1.51618318]
[1743033155431,8.10803,2009.2,2009.1,2.82088318]
[1743033155827,8.5366,2009.2,2009.1,2.82088318]
[1743033156327,8.5366,2009.2,2009.1,3.6547337]
[1743033158427,8.5366,2009.2,2009.1,3.65581926]
[1743033159227,8.5366,2009.2,2009.1,4.32902342]
[1743033160538,7.1127,2009.2,2009.1,4.32902342]
[1743033161229,7.1127,2009.2,2009.1,5.02198297]
[1743033161727,1.351,2009.3,2009.1,4.02667297]
[1743033161928,2.35239,2009.5,2009.4,0.9952]
[1743033162234,9.1541,2009.5,2009.4,2.35322709]
[1743033162529,9.1541,2009.5,2009.4,3.02643125]
[1743033163327,9.1541,2009.5,2009.4,2.35322709]
[1743033164931,9.1541,2009.5,2009.4,3.02801977]
[1743033165430,7.1127,2009.5,2009.4,6.92902067]
[1743033166237,7.1127,2009.5,2009.4,8.00830481]
[1743033166537,7.1127,2009.5,2009.4,6.92902067]
[1743033166931,2.747,2009.7,2009.6,0.9951]
[1743033167136,2.747,2009.7,2009.6,2.35312709]
[1743033167437,9.8597,2009.7,2009.6,2.35312709]
[1743033167732,9.8597,2009.7,2009.6,3.02791977]
[1743033168641,0.00746213,2010.0,2009.9,0.99495]
[1743033168833,0.00746213,2010.0,2009.9,2.35297709]
[1743033169039,2.90816214,2010.0,2009.9,4.36507464]
[1743033169235,2.90816214,2010.0,2009.9,3.67297709]
[1743033169836,2.90816214,2010.0,2009.9,4.34776977]
[1743033170037,2.90816214,2010.0,2009.9,3.02776977]
[1743033170432,2.90816214,2010.0,2009.9,2.3514401]
[1743033170433,4.27356214,2010.0,2009.9,2.3514401]
[1743033170831,4.27356214,2010.0,2009.9,3.7854401]
[1743033171232,2.90816214,2010.0,2009.9,3.7854401]
[1743033171539,2.13e-06,2010.0,2009.9,3.78382994]
[1743033171738,2.13e-06,2010.0,2009.9,4.45654809]
[1743033172442,2.13e-06,2010.0,2009.9,5.14789721]
[1743033172834,2.13e-06,2010.0,2009.9,5.14785228]
[1743033173541,2.13e-06,2010.0,2009.9,5.14741223]
[1743033173741,2.13e-06,2010.0,2009.9,6.22355963]
[1743033175555,2.13e-06,2010.0,2009.9,5.1469982]
[1743033179255,2.13e-06,2010.0,2009.9,5.14647701]
[1743033179958,2.90070214,2010.0,2009.9,5.14647701]
[1743033180157,2.90070214,2010.0,2009.9,4.45585552]
[1743033180954,2.90070214,2010.0,2009.9,4.45485934]
[1743033181453,2.13e-06,2010.0,2009.9,5.14531441]
[1743033183453,2.13e-06,2010.0,2009.9,6.21993981]
[1743033184457,2.13e-06,2010.0,2009.9,6.21960928]
[1743033186164,2.13e-06,2010.0,2009.9,5.14498388]
[1743033188163,2.13e-06,2010.0,2009.9,5.14542482]
[1743033188862,2.90070214,2010.0,2009.9,5.14542482]
[1743033191470,2.13e-06,2010.0,2009.9,7.3266554]
[1743033193861,2.13e-06,2010.0,2009.9,7.33053673]
[1743033194075,3.89560214,2010.0,2009.9,4.09842883]
[1743033194276,2.90070214,2010.0,2009.9,4.09944199]
[1743033194572,5.30632214,2010.0,2009.9,0.99495]
[1743033194768,4.31140214,2010.0,2009.7,4.97506]
[1743033194969,1.41070213,2010.0,2009.9,0.99495]
[1743033195171,1.41070213,2010.0,2009.9,1.82029925]
[1743033195365,4.31140214,2010.0,2009.9,1.82029925]
[1743033195668,5.30630214,2010.0,2009.9,0.99495]
[1743033196472,4.31140214,2010.0,2009.9,1.82087532]
[1743033196965,4.31140214,2010.0,2009.9,0.99495]
[1743033197473,5.30630214,2010.0,2009.9,1.82092785]
[1743033197770,6.02200214,2010.0,2009.9,0.99495]
[1743033198071,6.70690214,2010.0,2009.9,0.99495]
[1743033198269,5.71200214,2010.0,2009.9,0.99495]
[1743033198572,6.70690214,2010.0,2009.9,0.99495]
[1743033199074,6.70690214,2010.0,2009.9,1.82094604]
[1743033199465,5.71200214,2010.0,2009.9,0.99495]
[1743033199771,6.70690214,2010.0,2009.9,1.82103067]
[1743033200766,6.70690214,2010.0,2009.9,0.99495]
[1743033200972,5.71200214,2010.0,2009.9,1.82112063]
[1743033201576,5.71200214,2010.0,2009.9,1.82102455]
[1743033201776,6.70690214,2010.0,2009.9,1.82102455]
[1743033201970,6.70690214,2010.0,2009.9,1.82105293]
[1743033202474,6.70690214,2010.0,2009.9,1.82096364]
[1743033203074,6.70690214,2010.0,2009.9,0.99495]
[1743033203674,6.70690214,2010.0,2009.9,1.82086048]
[1743033204066,6.70690214,2010.0,2009.9,0.99495]
[1743033205976,6.02200214,2010.0,2009.9,0.99495]
[1743033206180,6.68460214,2010.0,2009.9,0.99495]
[1743033206476,6.68460214,2010.0,2009.9,1.5110222]
[1743033206672,6.02200214,2010.0,2009.9,1.5110222]
[1743033209680,6.02200214,2010.0,2009.9,2.33668604]
[1743033209875,5.02710214,2010.0,2009.9,1.5110222]
[1743033210076,6.02200214,2010.0,2009.9,2.33671829]
[1743033210271,6.02200214,2010.0,2009.9,5.82171829]
[1743033210272,2.13e-06,2010.0,2009.9,5.82171829]
[1743033210474,2.13e-06,2010.0,2009.9,9.27544883]
[1743033210973,2.13e-06,2010.0,2009.9,11.46156877]
[1743033211175,2.13e-06,2010.0,2009.9,11.4607989]
[1743033211678,2.13e-06,2010.0,2009.9,10.35288266]
[1743033212984,2.13e-06,2010.0,2009.9,10.35312896]
[1743033213284,2.13e-06,2010.0,2009.9,11.46110712]
[1743033214885,2.13e-06,2010.0,2009.9,11.46064943]
[1743033216884,2.13e-06,2010.0,2009.9,11.46046812]
[1743033218783,2.13e-06,2010.0,2009.9,11.46002669]
[1743033219792,2.13e-06,2010.0,2009.9,11.45954102]
[1743033220592,2.13e-06,2010.0,2009.9,11.45821241]
[1743033222589,2.13e-06,2010.0,2009.9,11.4583101]
[1743033226492,2.13e-06,2010.0,2009.9,11.45725674]
[1743033228288,2.13e-06,2010.0,2009.9,9.7050445]
[1743033228496,2.13e-06,2010.0,2009.9,11.45516443]
[1743033230085,2.13e-06,2010.0,2009.9,8.31716993]
[1743033230287,2.13e-06,2010.0,2009.9,11.45591329]
[1743033233193,2.13e-06,2010.0,2009.9,11.45667085]
[1743033234096,2.90070214,2010.0,2009.9,11.39196814]
[1743033234297,2.90070214,2010.0,2009.9,4.77767039]
[1743033234498,2.90070214,2010.0,2009.9,3.70067351]
[1743033234699,5.57260214,2010.0,2009.9,3.00867492]
[1743033235301,5.57260214,2010.0,2009.9,3.70129253]
[1743033235997,5.57260214,2010.0,2009.9,3.7014244]
[1743033237999,5.57260214,2010.0,2009.9,3.70312199]
[1743033238199,5.57260214,2010.0,2009.9,4.78219631]
[1743033239597,4.89160214,2010.0,2009.9,4.78219631]
[1743033239792,4.89160214,2010.0,2009.9,4.78325912]
[1743033241306,4.89160214,2010.0,2009.9,4.78345821]
[1743033242999,4.89160214,2010.0,2009.9,4.78320195]
[1743033243400,4.89160214,2010.0,2009.9,4.08992918]
[1743033243606,4.89160214,2010.0,2009.9,3.01085486]
[1743033248113,4.89160214,2010.0,2009.9,2.33773181]
[1743033248711,4.89160214,2010.0,2009.9,2.33749316]
[1743033249516,4.89160214,2010.0,2009.9,3.0120206]
[1743033249818,5.88650214,2010.0,2009.9,3.0120206]
[1743033250009,4.89160214,2010.0,2009.9,3.0120206]
[1743033250215,4.89160214,2010.0,2009.9,2.33749316]
[1743033250716,5.88650214,2010.0,2009.9,2.33706928]
[1743033252516,5.88650214,2010.0,2009.9,2.3370842]
[1743033252714,4.89160214,2010.0,2009.9,2.3370842]
[1743033253914,5.88650214,2010.0,2009.9,2.3370842]
[1743033254314,4.89160214,2010.0,2009.9,2.3370842]
[1743033254819,5.88650214,2010.0,2009.9,2.3370842]
[1743033255906,4.89160214,2010.0,2009.9,2.3370842]
[1743033256312,4.89160214,2010.0,2009.9,0.99495]
[1743033256517,5.88650214,2010.0,2009.9,2.33705232]
[1743033256716,4.89160214,2010.0,2009.9,2.33705232]
[1743033256912,1.99090213,2010.0,2009.9,2.33705232]
[1743033257218,4.89160214,2010.0,2009.9,2.33705232]
[1743033257718,4.89160214,2010.0,2009.9,4.35840675]
[1743033258119,5.88650214,2010.0,2009.9,3.68395232]
[1743033258315,4.89160214,2010.0,2009.9,3.68409364]
[1743033258522,5.88650214,2010.0,2009.9,3.68409364]
[1743033259217,4.89160214,2010.0,2009.9,3.68409364]
[1743033259417,5.88650214,2010.0,2009.9,3.68409364]
[1743033259615,4.89160214,2010.0,2009.9,3.68409364]
[1743033259921,4.89160214,2010.0,2009.9,4.35874882]
[1743033259922,5.88650214,2010.0,2009.9,4.35874882]
[1743033260315,4.89160214,2010.0,2009.9,4.35874882]
[1743033260620,5.88650214,2010.0,2009.9,4.35874882]
[1743033261629,4.89160214,2010.0,2009.9,4.35874882]
[1743033261816,5.88650214,2010.0,2009.9,4.35874882]
[1743033262817,4.89160214,2010.0,2009.9,4.35874882]
[1743033263127,2.90070214,2010.0,2009.9,5.05243392]
[1743033263416,2.90070214,2010.0,2009.9,5.70283392]
[1743033263623,2.90070214,2010.0,2009.9,6.78325325]
[1743033264017,2.90070214,2010.0,2009.9,4.74732451]
[1743033264219,2.90070214,2010.0,2009.9,5.7048446]
[1743033266223,2.90070214,2010.0,2009.9,5.70504646]
[1743033268119,2.90070214,2010.0,2009.9,5.70527539]
[1743033268826,4.27570214,2010.0,2009.9,5.70527539]
[1743033271217,4.27570214,2010.0,2009.9,3.66690518]
[1743033271522,4.27570214,2010.0,2009.9,2.99225]
[1743033272218,4.27570214,2010.0,2009.9,5.03128443]
[1743033272617,4.27570214,2010.0,2009.9,5.70694468]
[1743033273421,2.90070214,2010.0,2009.9,6.78801997]
[1743033274918,6.82464,2010.6,2010.5,0.99465]
[1743033275122,0.99464,2010.6,2010.5,1.51186045]
[1743033275317,3.89534001,2010.6,2010.5,1.51186045]
[1743033276221,5.22774001,2010.6,2010.5,1.51186045]
[1743033276523,4.23310001,2010.6,2010.5,1.51186045]
[1743033276718,4.23310001,2010.6,2010.5,2.33852489]
[1743033277421,4.23310001,2010.6,2010.5,3.0129588]
[1743033278121,4.23310001,2010.6,2010.5,3.6927588]
[1743033278922,4.23310001,2010.6,2010.5,3.01832489]
[1743033283131,4.23310001,2010.6,2010.5,1.67445]
[1743033283335,4.23310001,2010.6,2010.5,3.01483139]
[1743033284329,5.22770001,2010.6,2010.5,0.5155313]
[1743033284532,0.99469,2010.5,2010.3,1.00221213]
[1743033284835,3.2078,2010.4,2010.3,1.00221213]
[1743033285029,6.10850001,2010.4,2010.3,1.51784586]
[1743033285222,7.52760001,2010.4,2010.3,1.51784586]
[1743033285829,8.52230001,2010.4,2010.3,1.51784586]
[1743033289736,8.52230001,2010.4,2010.3,2.19188214]
[1743033290335,8.52230001,2010.4,2010.3,3.01743349]
[1743033291340,8.52230001,2010.4,2010.3,2.19188214]
[1743033292629,8.52230001,2010.4,2010.3,3.01763588]
[1743033292834,8.52230001,2010.4,2010.3,2.19235356]
[1743033293235,8.52230001,2010.4,2010.3,2.19234955]
[1743033293441,8.52230001,2010.4,2010.3,3.01815821]
[1743033293640,2.90070001,2010.4,2010.3,3.71089125]
[1743033294041,2.90070001,2010.4,2010.3,5.11349125]
[1743033294333,2.90070001,2010.4,2010.3,6.19188252]
[1743033294737,2.90070001,2010.4,2010.3,6.19118735]
[1743033295135,2.90070001,2010.4,2010.3,5.11279608]
[1743033296143,3.89179522,2010.8,2010.3,5.11279608]
[1743033296144,0.00741522,2010.8,2010.7,0.99455]
[1743033296349,0.00741522,2010.8,2010.7,6.34949767]
[1743033296541,0.67062523,2010.8,2010.7,6.35781037]
[1743033296738,0.67062523,2010.8,2010.7,7.6976385]
[1743033297346,0.67062523,2010.8,2010.7,8.37167478]
[1743033298439,0.67062523,2010.8,2010.7,6.33928628]
[1743033298640,0.67062523,2010.8,2010.7,7.67866625]
[1743033299245,0.67062523,2010.8,2010.7,8.35776625]
[1743033300447,0.67062523,2010.8,2010.7,8.35780821]
[1743033301742,0.00741522,2010.8,2010.7,8.35754441]
[1743033301942,0.00741522,2010.8,2010.7,9.04891599]
[1743033303554,5.22e-06,2010.8,2010.7,9.04891599]
[1743033304143,0.66321523,2010.8,2010.7,6.80394646]
[1743033304454,0.66321523,2010.8,2010.7,6.11257488]
[1743033304648,0.66321523,2010.8,2010.7,5.72766095]
[1743033305555,0.66321523,2010.8,2010.7,5.72686436]
[1743033307255,0.66321523,2010.8,2010.7,5.03582112]
[1743033307455,0.66321523,2010.8,2010.7,5.03532411]
[1743033309348,0.66321523,2010.8,2010.7,5.03504747]
[1743033310050,1.97921523,2010.8,2010.7,5.03504747]
[1743033310357,1.97921523,2010.8,2010.7,4.36101119]
[1743033311158,1.97921523,2010.8,2010.7,3.68191119]
[1743033312063,1.97921523,2010.8,2010.7,4.35145851]
[1743033312660,2.97371523,2010.8,2010.7,4.35145851]
[1743033312861,2.97371523,2010.8,2010.7,3.52828239]
[1743033313159,2.97371523,2010.8,2010.7,2.85889448]
[1743033313160,1.97921523,2010.8,2010.7,2.85889448]
[1743033313361,2.97371523,2010.8,2010.7,2.85889448]
[1743033313563,2.97371523,2010.8,2010.7,0.51464448]
[1743033313757,0.99465,2010.5,2010.4,2.3067]
[1743033313959,0.99465,2010.5,2010.4,1.312]
[1743033314260,1.65786001,2010.5,2010.4,2.3067]
[1743033314455,3.05996001,2010.5,2010.4,1.312]
[1743033314670,3.05996001,2010.5,2010.4,0.9947]
[1743033315162,0.9947,2010.4,2010.3,2.44249213]
[1743033315356,3.72511001,2010.4,2010.3,2.44249213]
[1743033319164,3.72511001,2010.4,2010.3,1.00219213]
[1743033325066,3.72511001,2010.4,2010.3,0.00746213]
[1743033325562,3.72511001,2010.4,2010.3,1.00221213]
[1743033335270,8.84515,2010.6,2010.3,1.00221213]
[1743033335271,3.2078,2010.6,2010.5,0.99465]
[1743033335472,4.2024,2010.6,2010.5,1.50394533]
[1743033335670,0.99465,2010.5,2010.4,3.03446]
[1743033335869,3.67576001,2010.5,2010.4,2.8926056]
[1743033336070,3.67576001,2010.5,2010.4,1.3887]
[1743033336270,3.67576001,2010.5,2010.3,0.00746213]
[1743033336271,2.68111001,2010.5,2010.3,0.00746213]
[1743033336471,3.63801001,2010.4,2010.3,0.00746213]
[1743033338081,3.63801001,2010.4,2010.3,0.51703657]
[1743033338581,3.63801001,2010.4,2010.3,1.51178657]
[1743033340379,2.97261001,2010.4,2010.3,1.51178657]
[1743033341679,2.97261001,2010.4,2010.3,2.82348657]
[1743033343379,2.97261001,2010.4,2010.3,3.49639926]
[1743033346677,0.66321001,2010.4,2010.3,2.82348657]
[1743033346877,0.66321001,2010.4,2010.3,3.51755647]
[1743033347081,1.4098,2010.5,2010.4,0.9947]
[1743033347376,1.4098,2010.5,2010.4,3.51164434]
[1743033347578,2.07301001,2010.5,2010.4,3.51170337]
[1743033347778,2.07301001,2010.5,2010.4,4.18461671]
[1743033348980,5.83000522,2010.8,2010.5,2.48653]
[1743033349188,5.83000522,2010.8,2009.9,4.97477]
[1743033349189,0.9947,2010.5,2009.9,4.97477]
[1743033349485,1.65792001,2010.4,2010.3,0.99475]
[1743033349684,3.07301,2010.4,2010.3,0.99475]
[1743033349883,0.99475,2010.3,2010.2,2.31776]
[1743033350085,6.27766001,2010.3,2010.2,2.31776]
[1743033351186,5.28291001,2010.3,2010.2,2.31776]
[1743033351384,3.87101001,2010.3,2010.2,2.31776]
[1743033351793,3.87101001,2010.3,2010.2,3.0119525]
[1743033352376,0.66321001,2010.3,2010.2,3.0119525]
[1743033353392,0.66321001,2010.3,2010.2,3.01196022]
[1743033354289,0.66321001,2010.3,2010.2,2.31776]
[1743033354492,0.66321001,2010.3,2010.2,3.01205961]
[1743033355390,1.96471001,2010.3,2010.2,3.01205961]
[1743033355886,2.95946001,2010.3,2010.2,3.01205961]
[1743033356091,1.96471001,2010.3,2010.2,3.01205961]
[1743033356699,2.95946001,2010.3,2010.2,3.01205961]
[1743033356878,2.95946001,2010.3,2010.2,2.31776]
[1743033357793,1.96471001,2010.3,2010.2,2.31776]
[1743033357989,2.95946001,2010.3,2010.2,2.31776]
[1743033359096,0.99485,2010.2,2010.1,0.99481]
[1743033359393,2.99196001,2010.2,2010.1,0.99481]
[1743033359594,2.99191001,2010.2,2010.1,3.1217901]
[1743033360192,1.99711001,2010.2,2010.1,3.1217901]
[1743033360495,2.99191001,2010.2,2010.1,3.1217901]
[1743033360996,2.99191001,2010.2,2010.1,3.12173727]
[1743033361197,2.99191001,2010.2,2010.1,2.93242766]
[1743033361498,2.99191001,2010.2,2010.1,2.16823731]
[1743033362097,2.99191001,2010.2,2010.1,1.17342731]
[1743033362391,2.99191001,2010.2,2010.1,0.50521766]
[1743033362898,2.99191001,2010.2,2010.1,1.50006766]
[1743033363596,2.99191001,2010.2,2010.1,0.50521766]
[1743033363798,2.99191001,2010.2,2010.1,1.50006766]
[1743033364393,2.99191001,2010.2,2010.1,1.49998754]
[1743033364593,2.99191001,2010.2,2010.1,0.50513754]
[1743033364899,2.99191001,2010.2,2010.1,1.49998754]
[1743033366199,2.99191001,2010.2,2010.1,1.49994665]
[1743033368098,2.99191001,2010.2,2010.1,1.49987874]
[1743033370001,2.99191001,2010.2,2010.1,1.49977449]
[1743033371601,2.99191001,2010.2,2010.1,0.50492449]
[1743033372097,2.99191001,2010.2,2010.1,1.49977449]
[1743033373900,2.99191001,2010.2,2010.1,0.50492449]
[1743033374105,2.99191001,2010.2,2010.1,1.49977449]
[1743033374507,2.99191001,2010.2,2010.1,0.50492449]
[1743033375708,0.99485,2010.1,2010.0,1.42246213]
[1743033375904,7.60756001,2010.1,2010.0,2.92215791]
[1743033377508,7.60756001,2010.1,2010.0,2.92219135]
[1743033379505,6.94326001,2010.1,2010.0,2.92219135]
[1743033379910,6.94326001,2010.1,2010.0,3.59032142]
[1743033382709,6.27366001,2010.1,2010.0,3.59032142]
[1743033383412,6.27366001,2010.1,2010.0,3.59085554]
[1743033383615,6.27366001,2010.1,2010.0,2.92272547]
[1743033385513,2.07101001,2010.1,2010.0,2.92272547]
[1743033385718,0.66321001,2010.1,2010.0,3.61766709]
[1743033386124,0.66321001,2010.1,2010.0,2.92272547]
[1743033386419,0.66321001,2010.1,2010.0,4.28665849]
[1743033386612,0.66321001,2010.1,2010.0,4.28664824]
[1743033386812,0.66321001,2010.1,2010.0,3.59158461]
[1743033387008,0.66321001,2010.1,2010.0,4.28667933]
[1743033387213,0.66321001,2010.1,2010.0,4.28708894]
[1743033392929,0.66321001,2010.1,2010.0,4.28735078]
[1743033393730,3.00376001,2010.1,2010.0,4.28735078]
[1743033393930,3.00376001,2010.1,2010.0,3.59199422]
[1743033395519,3.70426001,2010.1,2010.0,3.59199422]
[1743033396328,2.70941001,2010.1,2010.0,3.59199422]
[1743033396532,2.70941001,2010.1,2010.0,4.28747356]
[1743033396737,2.70941001,2010.1,2010.0,3.59226]
[1743033396929,2.70941001,2010.1,2010.0,4.28784016]
[1743033397333,2.70941001,2010.1,2010.0,3.59226]
[1743033397634,3.70426001,2010.1,2010.0,3.59226]
[1743033398731,3.70426001,2010.1,2010.0,3.5923112]
[1743033399836,3.70426001,2010.1,2010.0,1.1824112]
[1743033399837,6.91206001,2010.1,2010.0,1.1824112]
[1743033400233,6.91206001,2010.1,2010.0,0.51355206]
[1743033400429,0.99513,2009.6,2009.4,2.48796]
[1743033400629,0.99505,2009.7,2009.6,2.3885]
[1743033401043,3.73605,2009.7,2009.6,2.3885]
[1743033404637,3.73605,2009.7,2009.6,1.3934]
[1743033405634,3.73605,2009.7,2009.6,2.3885]
[1743033405932,3.73605,2009.7,2009.6,1.3934]
[1743033406334,0.99515,2009.5,2009.4,0.00746213]
[1743033406633,4.20295,2009.5,2009.4,0.00746213]
[1743033406835,5.61705,2009.5,2009.4,0.00746213]
[1743033407544,5.61705,2009.5,2009.4,1.40426213]
[1743033412944,0.99525,2009.3,2009.2,0.99526]
[1743033413448,2.30765,2009.3,2009.2,0.99526]
[1743033413746,2.30765,2009.3,2009.2,2.37336]
[1743033415645,4.20298,2009.5,2009.4,0.9952]
[1743033416042,4.20298,2009.5,2009.4,2.4094]
[1743033416948,4.20298,2009.5,2009.4,1.4142]
[1743033417141,5.59158,2009.5,2009.4,2.4094]
[1743033419845,5.59158,2009.5,2009.4,1.4142]
[1743033420056,0.9952,2009.4,2009.3,2.3801]
[1743033420247,3.0608,2009.4,2009.3,3.7379]
[1743033420549,3.0608,2009.4,2009.3,2.7427]
[1743033420749,3.0608,2009.4,2009.3,3.73795]
[1743033421055,3.0608,2009.4,2009.3,2.0639]
[1743033421852,0.9953,2009.2,2009.1,1.67755]
[1743033422053,0.9953,2009.2,2009.1,3.03535]
[1743033422350,2.3635,2009.2,2009.1,3.03535]
[1743033425051,2.3635,2009.2,2009.1,3.53478475]
[1743033428853,2.3635,2009.2,2009.1,3.53540769]
[1743033429953,2.3635,2009.2,2009.1,3.53577051]
[1743033431150,2.3635,2009.2,2009.1,2.54042051]
[1743033431356,3.0267,2009.2,2009.1,0.50042051]
[1743033431560,3.0267,2009.2,2009.1,1.82792051]
[1743033431954,3.0267,2009.2,2009.1,0.50042051]
[1743033432154,3.0267,2009.2,2009.0,1.00286213]
[1743033432155,0.99535,2009.1,2009.0,1.00286213]
[1743033432354,2.99185,2009.1,2009.0,1.50364655]
[1743033432856,2.99185,2009.1,2009.0,2.86644655]
[1743033433060,6.19965,2009.1,2009.0,2.86644655]
[1743033435074,11.0343,2009.1,2008.2,3.2078]
[1743033435377,11.0343,2009.1,2008.3,2.35854]
[1743033435378,0.99575,2008.4,2008.3,2.35854]
[1743033438176,0.00746213,2008.6,2008.5,0.99564]
[1743033438376,1.32786213,2008.6,2008.5,0.99564]
[1743033438683,1.32786213,2008.6,2008.5,2.39214]
[1743033439176,2.32350213,2008.6,2008.5,2.39214]
[1743033440282,2.32350213,2008.6,2008.5,1.3965]
[1743033440580,2.32350213,2008.6,2008.5,2.39214]
[1743033440983,2.32350213,2008.6,2008.5,1.3965]
[1743033441182,2.32350213,2008.6,2008.5,2.39214]
[1743033447475,2.32350213,2008.6,2008.5,1.3965]
[1743033447983,2.32350213,2008.6,2008.5,2.39214]
[1743033448884,2.32350213,2008.6,2008.5,1.3965]
[1743033449087,0.99574,2008.4,2008.3,0.99569]
[1743033449383,0.99574,2008.4,2008.3,2.39869]
[1743033449589,2.39614,2008.4,2008.3,2.39869]
[1743033450176,0.99574,2008.3,2008.2,0.99576]
[1743033450471,0.99574,2008.3,2008.2,0.99579]
[1743033450472,2.39618,2008.3,2008.2,0.99579]
[1743033450675,1.4004,2008.3,2008.2,1.69849]
[1743033452292,0.00746213,2008.6,2008.3,2.48924]
[1743033452583,0.00746213,2008.6,2008.5,0.99564]
[1743033452783,0.00746213,2008.6,2008.5,2.99524]
[1743033453374,1.34366213,2008.6,2008.5,2.99524]
[1743033454378,0.00746213,2008.6,2008.5,2.99524]
[1743033454580,0.00746213,2008.6,2008.5,6.20304]
[1743033460690,0.00746213,2008.6,2008.5,2.99524]
[1743033461784,0.00746213,2008.6,2008.5,3.64659912]
[1743033463285,0.00746213,2008.6,2008.5,4.3245081]
[1743033463691,0.00746213,2008.6,2008.5,3.64659912]
[1743033464092,1.34806213,2008.6,2008.5,3.64659912]
[1743033466393,1.34806213,2008.6,2008.5,4.32485015]
[1743033466996,1.34806213,2008.6,2008.5,4.32484948]
[1743033468897,1.34806213,2008.6,2008.5,4.3248086]
[1743033470603,3.2078,2008.9,2008.8,0.99549]
[1743033472088,4.5729,2008.9,2008.8,2.31089]
[1743033478807,5.56835,2008.9,2008.8,0.99549]
[1743033480205,4.5729,2008.9,2008.8,0.99549]
[1743033480504,5.56835,2008.9,2008.8,2.37459]
[1743033480704,4.5729,2008.9,2008.8,2.37459]
[1743033481500,5.56835,2008.9,2008.8,2.37459]
[1743033482006,5.56835,2008.9,2008.8,0.99549]
[1743033483307,4.5729,2008.9,2008.8,0.99549]
[1743033483508,4.5729,2008.9,2008.8,2.37409]
[1743033483808,0.00746213,2009.1,2009.0,0.9954]
[1743033486004,0.00746213,2009.1,2009.0,4.2032]
[1743033487012,1.38536213,2009.1,2009.0,4.2032]
[1743033488909,0.00746213,2009.1,2009.0,4.85429132]
[1743033489413,0.00746213,2009.1,2009.0,5.53157916]
[1743033489613,0.00746213,2009.1,2009.0,4.85429132]
[1743033490209,0.00746213,2009.1,2009.0,4.2032]
[1743033493322,0.00746213,2009.1,2009.0,7.4372]
[1743033494419,0.00746213,2009.1,2009.0,8.11421188]
[1743033494621,0.00746213,2009.1,2009.0,8.76489833]
[1743033501025,0.00746213,2009.1,2009.0,8.76478718]
[1743033502730,0.00746213,2009.1,2009.0,8.76476844]
[1743033503019,2.13e-06,2009.1,2009.0,8.76476844]
[1743033503225,2.13e-06,2009.1,2009.0,11.26476844]
[1743033503527,0.7092,2009.6,2009.5,0.99515]
[1743033503829,0.6848,2009.7,2009.6,0.9951]
[1743033504724,0.6914,2009.8,2009.7,0.99505]
[1743033504920,0.00746213,2009.9,2009.8,0.995]
[1743033505424,0.00746213,2009.9,2009.8,2.3944]
[1743033508415,1.00241213,2009.9,2009.8,2.3944]
[1743033508716,0.00746213,2009.9,2009.8,2.3944]
[1743033508920,1.00241213,2009.9,2009.8,2.3944]
[1743033509120,0.00746213,2009.9,2009.8,2.3944]
[1743033509923,1.00241213,2009.9,2009.8,2.3944]
[1743033510523,0.00746213,2009.9,2009.8,2.3944]
[1743033514237,1.00241213,2009.9,2009.8,2.3944]
[1743033514629,1.00241213,2009.9,2009.8,0.995]
[1743033516029,1.00241213,2009.9,2009.8,2.4201]
[1743033518639,2.43281213,2009.9,2009.8,2.4201]
[1743033519039,1.43786213,2009.9,2009.8,2.4201]
[1743033519438,2.43281213,2009.9,2009.8,2.4201]
[1743033519832,2.43281213,2009.9,2009.8,0.995]
[1743033521936,1.43786213,2009.9,2009.7,1.3502]
[1743033522240,0.9951,2009.7,2009.6,0.99505]
[1743033522429,0.9951,2009.7,2009.6,2.40215]
[1743033522627,2.3746,2009.7,2009.6,2.40215]
[1743033522826,3.0394,2009.7,2009.6,2.40215]
[1743033523738,1.00246213,2009.9,2009.8,0.995]
[1743033523944,3.04676213,2009.9,2009.8,0.995]
[1743033524543,3.04676213,2009.9,2009.8,2.3532]
[1743033528541,3.04676213,2009.9,2009.8,1.3582]
[1743033528844,3.04676213,2009.9,2009.8,2.3532]
[1743033529340,3.04676213,2009.9,2009.8,1.3582]
[1743033529735,3.04676213,2009.9,2009.8,2.3532]
[1743033532637,3.04676213,2009.9,2009.8,1.3582]
[1743033533039,3.04676213,2009.9,2009.8,2.3532]
[1743033533646,3.04676213,2009.9,2009.8,1.3582]
[1743033534738,3.04676213,2009.9,2009.8,2.3532]
[1743033534940,3.04676213,2009.9,2009.8,1.3582]
[1743033535134,3.04676213,2009.9,2009.8,2.3532]
[1743033535546,3.04676213,2009.9,2009.8,1.3582]